[Event "Live Chess"]
[Site "Chess.com"]
[Date "2023.05.21"]
[Round "-"]
[White "Ferrarifan27"]
[Black "VovaOvchar1990"]
[Result "1-0"]
[WhiteElo "2109"]
[BlackElo "1226"]
[TimeControl "300"]
[EndTime "3:03:41 PDT"]
[Termination "Ferrarifan27 won by checkmate"]

1. e4 {[%clk 0:04:59.3]} 1... e5 {[%clk 0:04:58.4]} 2. Nf3 {[%clk 0:04:58.2]}
2... Nc6 {[%clk 0:04:57.1]} 3. Bb5 {[%clk 0:04:57.2]} 3... Bc5 {[%clk
0:04:56.1]} 4. O-O {[%clk 0:04:55.7]} 4... d6 {[%clk 0:04:54.6]} 5. c3 {[%clk
0:04:54.1]} 5... a6 {[%clk 0:04:53.3]} 6. Ba4 {[%clk 0:04:52.4]} 6... Bd7 {[%clk
0:04:50.2]} 7. d4 {[%clk 0:04:50.9]} 7... exd4 {[%clk 0:04:48.8]} 8. cxd4 {[%clk
0:04:50.8]} 8... Ba7 {[%clk 0:04:47.9]} 9. Nc3 {[%clk 0:04:43.2]} 9... Nf6
{[%clk 0:04:45.9]} 10. Bg5 {[%clk 0:04:41]} 10... O-O {[%clk 0:04:44.2]} 11. e5
{[%clk 0:04:39.7]} 11... h6 {[%clk 0:04:35.8]} 12. Bh4 {[%clk 0:04:28.2]} 12...
dxe5 {[%clk 0:04:23.5]} 13. dxe5 {[%clk 0:04:24.1]} 13... Bg4 {[%clk 0:04:11.8]}
14. exf6 {[%clk 0:04:21.1]} 14... Qxd1 {[%clk 0:04:07.7]} 15. Raxd1 {[%clk
0:04:18.9]} 15... Bxf3 {[%clk 0:04:02.8]} 16. gxf3 {[%clk 0:04:17.6]} 16... g5
{[%clk 0:03:57.6]} 17. Bxc6 {[%clk 0:04:15.3]} 17... bxc6 {[%clk 0:03:50.8]} 18.
Bg3 {[%clk 0:04:14.2]} 18... Rfe8 {[%clk 0:03:42.5]} 19. Bxc7 {[%clk 0:04:09.3]}
19... Rac8 {[%clk 0:03:38.7]} 20. Bd6 {[%clk 0:04:01.9]} 20... Re6 {[%clk
0:03:36.4]} 21. Be7 {[%clk 0:04:00.8]} 21... Kh7 {[%clk 0:03:29.3]} 22. Rd7
{[%clk 0:03:47.4]} 22... Bc5 {[%clk 0:03:17.1]} 23. Bxc5 {[%clk 0:03:45.5]}
23... Rxf6 {[%clk 0:03:15.8]} 24. Kg2 {[%clk 0:03:42.8]} 24... Rg8 {[%clk
0:03:10.3]} 25. Re1 {[%clk 0:03:40.1]} 25... g4 {[%clk 0:03:07]} 26. f4 {[%clk
0:03:39.2]} 26... Rxf4 {[%clk 0:03:04]} 27. Ree7 {[%clk 0:03:38.2]} 27... Kg6
{[%clk 0:03:00.9]} 28. Be3 {[%clk 0:03:28.5]} 28... Rf3 {[%clk 0:02:54.9]} 29.
Rd6+ {[%clk 0:03:24.5]} 29... Kh5 {[%clk 0:02:51.4]} 30. Rxh6# {[%clk
0:03:22.6]} 1-0

[Event "Live Chess"]
[Site "Chess.com"]
[Date "2023.05.21"]
[Round "-"]
[White "apl_trainer"]
[Black "CeladonFish"]
[Result "1-0"]
[WhiteElo "1768"]
[BlackElo "1073"]
[TimeControl "300"]
[EndTime "3:03:54 PDT"]
[Termination "apl_trainer won by resignation"]

1. d4 {[%clk 0:04:57.3]} 1... Nf6 {[%clk 0:04:58.2]} 2. c4 {[%clk 0:04:56.1]}
2... g6 {[%clk 0:04:57.4]} 3. Nc3 {[%clk 0:04:54.7]} 3... Bg7 {[%clk 0:04:56.8]}
4. e4 {[%clk 0:04:53.6]} 4... c6 {[%clk 0:04:55.1]} 5. e5 {[%clk 0:04:48.9]}
5... Nh5 {[%clk 0:04:51.7]} 6. g4 {[%clk 0:04:45]} 6... d6 {[%clk 0:04:38.5]} 7.
gxh5 {[%clk 0:04:40]} 7... gxh5 {[%clk 0:04:37.3]} 8. Qxh5 {[%clk 0:04:33.2]}
8... dxe5 {[%clk 0:04:35.2]} 9. dxe5 {[%clk 0:04:28.2]} 9... Na6 {[%clk
0:04:26.1]} 10. Bf4 {[%clk 0:04:15.4]} 10... Nb4 {[%clk 0:04:23.5]} 11. Rc1
{[%clk 0:04:08.2]} 11... Be6 {[%clk 0:03:56.4]} 12. Nf3 {[%clk 0:03:54.1]} 12...
Qd7 {[%clk 0:03:48.5]} 13. Ng5 {[%clk 0:03:49]} 13... Rd8 {[%clk 0:03:42]} 14.
Nxe6 {[%clk 0:03:42.2]} 14... Qxe6 {[%clk 0:03:19.8]} 15. b3 {[%clk 0:03:32.9]}
15... Qd7 {[%clk 0:03:15.6]} 16. Rg1 {[%clk 0:03:21.8]} 16... Nd3+ {[%clk
0:03:01.1]} 17. Bxd3 {[%clk 0:03:15.7]} 17... Qxd3 {[%clk 0:02:59.9]} 18. Rxg7
{[%clk 0:03:08.6]} 1-0

[Event "Live Chess"]
[Site "Chess.com"]
[Date "2023.05.21"]
[Round "-"]
[White "Bakunian2022"]
[Black "KeithArkell"]
[Result "0-1"]
[WhiteElo "760"]
[BlackElo "2495"]
[TimeControl "300"]
[EndTime "3:03:55 PDT"]
[Termination "KeithArkell won by resignation"]

1. e4 {[%clk 0:04:56.6]} 1... c6 {[%clk 0:04:58.6]} 2. Nf3 {[%clk 0:04:55.4]}
2... d5 {[%clk 0:04:58]} 3. exd5 {[%clk 0:04:54.3]} 3... cxd5 {[%clk 0:04:57.2]}
4. Bd3 {[%clk 0:04:53.8]} 4... Nf6 {[%clk 0:04:56.1]} 5. O-O {[%clk 0:04:52.6]}
5... Nc6 {[%clk 0:04:55.5]} 6. b3 {[%clk 0:04:50.6]} 6... Bg4 {[%clk 0:04:54.1]}
7. Bb2 {[%clk 0:04:49.2]} 7... e6 {[%clk 0:04:52.8]} 8. h3 {[%clk 0:04:44.9]}
8... Bxf3 {[%clk 0:04:50.9]} 9. Qxf3 {[%clk 0:04:43.8]} 9... Bd6 {[%clk
0:04:50.2]} 10. Bb5 {[%clk 0:04:33.3]} 10... O-O {[%clk 0:04:48.4]} 11. d3
{[%clk 0:04:29.9]} 11... Rc8 {[%clk 0:04:44.2]} 12. Bxc6 {[%clk 0:04:26.1]}
12... Rxc6 {[%clk 0:04:43.3]} 13. Qe2 {[%clk 0:04:21]} 13... b5 {[%clk
0:04:41.7]} 14. Nd2 {[%clk 0:04:18.8]} 14... b4 {[%clk 0:04:40.5]} 15. Rfc1
{[%clk 0:03:50.6]} 15... Qe7 {[%clk 0:04:38.8]} 16. a4 {[%clk 0:03:46.1]} 16...
Rfc8 {[%clk 0:04:35.6]} 17. Bxf6 {[%clk 0:03:38.4]} 17... Qxf6 {[%clk 0:04:33]}
18. Qd1 {[%clk 0:03:29.8]} 18... Rxc2 {[%clk 0:04:31.2]} 19. Rxc2 {[%clk
0:03:27.5]} 19... Rxc2 {[%clk 0:04:30.2]} 20. Rc1 {[%clk 0:03:24.9]} 20... Rxc1
{[%clk 0:04:22.8]} 21. Qxc1 {[%clk 0:03:24.3]} 21... Qc3 {[%clk 0:04:21.8]} 22.
Qxc3 {[%clk 0:03:16.3]} 22... bxc3 {[%clk 0:04:12.3]} 23. Nf3 {[%clk 0:03:04.3]}
23... c2 {[%clk 0:04:10.8]} 0-1

[Event "Live Chess"]
[Site "Chess.com"]
[Date "2023.05.21"]
[Round "-"]
[White "FMOlexandrProhorov"]
[Black "JoshMcK"]
[Result "1-0"]
[WhiteElo "2182"]
[BlackElo "1508"]
[TimeControl "300"]
[EndTime "3:03:58 PDT"]
[Termination "FMOlexandrProhorov won by resignation"]

1. c4 {[%clk 0:04:55.7]} 1... Nf6 {[%clk 0:04:58.1]} 2. Nc3 {[%clk 0:04:54.4]}
2... g6 {[%clk 0:04:56.4]} 3. d4 {[%clk 0:04:53.7]} 3... Bg7 {[%clk 0:04:54.5]}
4. Nf3 {[%clk 0:04:52.7]} 4... O-O {[%clk 0:04:53]} 5. e4 {[%clk 0:04:52.4]}
5... d6 {[%clk 0:04:52.2]} 6. Be2 {[%clk 0:04:52.1]} 6... Nbd7 {[%clk
0:04:48.9]} 7. O-O {[%clk 0:04:51.7]} 7... c5 {[%clk 0:04:46.3]} 8. Re1 {[%clk
0:04:51.2]} 8... cxd4 {[%clk 0:04:45]} 9. Nxd4 {[%clk 0:04:51.1]} 9... Nc5
{[%clk 0:04:42.5]} 10. Bf1 {[%clk 0:04:48.6]} 10... a6 {[%clk 0:04:31.2]} 11. f3
{[%clk 0:04:46.2]} 11... Qc7 {[%clk 0:04:23.9]} 12. Be3 {[%clk 0:04:44.7]} 12...
Ne6 {[%clk 0:04:16.2]} 13. Rc1 {[%clk 0:04:43.3]} 13... Nxd4 {[%clk 0:04:09.6]}
14. Bxd4 {[%clk 0:04:43.2]} 14... Bd7 {[%clk 0:04:06.3]} 15. Nd5 {[%clk
0:04:30.1]} 15... Nxd5 {[%clk 0:04:03.4]} 16. Bxg7 {[%clk 0:04:23.7]} 16... Kxg7
{[%clk 0:04:01.4]} 17. exd5 {[%clk 0:04:22.1]} 17... Qc5+ {[%clk 0:03:59.4]} 18.
Kh1 {[%clk 0:04:20.7]} 18... Kg8 {[%clk 0:03:53.7]} 19. Rxe7 {[%clk 0:04:17.2]}
19... Bf5 {[%clk 0:03:49.6]} 20. Bd3 {[%clk 0:04:16]} 20... Bxd3 {[%clk
0:03:46.9]} 21. Qxd3 {[%clk 0:04:15.4]} 21... b5 {[%clk 0:03:35.3]} 22. b3
{[%clk 0:04:05.3]} 22... Rac8 {[%clk 0:03:32.7]} 23. h4 {[%clk 0:04:01.1]} 23...
b4 {[%clk 0:03:24.3]} 24. Rce1 {[%clk 0:03:58.9]} 24... a5 {[%clk 0:03:22.1]}
25. h5 {[%clk 0:03:55.4]} 25... Qf2 {[%clk 0:03:15.5]} 26. hxg6 {[%clk
0:03:48.7]} 26... Qh4+ {[%clk 0:03:11.3]} 27. Kg1 {[%clk 0:03:46.9]} 27... hxg6
{[%clk 0:03:10.3]} 28. Qe4 {[%clk 0:03:41.7]} 28... Qxe4 {[%clk 0:03:03.3]} 29.
R1xe4 {[%clk 0:03:40]} 29... Kg7 {[%clk 0:02:56]} 30. Ra7 {[%clk 0:03:37.1]}
30... Ra8 {[%clk 0:02:54.6]} 31. Ree7 {[%clk 0:03:36.3]} 31... Kf6 {[%clk
0:02:47.2]} 32. Kf2 {[%clk 0:03:33.5]} 32... Rxa7 {[%clk 0:02:38.4]} 33. Rxa7
{[%clk 0:03:31.9]} 33... Re8 {[%clk 0:02:34.3]} 34. Rxa5 {[%clk 0:03:30.5]} 1-0

[Event "Live Chess"]
[Site "Chess.com"]
[Date "2023.05.21"]
[Round "-"]
[White "Berdgross"]
[Black "TheSmoulderingMaster"]
[Result "0-1"]
[WhiteElo "663"]
[BlackElo "1709"]
[TimeControl "300"]
[EndTime "3:04:11 PDT"]
[Termination "TheSmoulderingMaster won by checkmate"]

1. e4 {[%clk 0:04:57.5]} 1... c5 {[%clk 0:04:58.9]} 2. d3 {[%clk 0:04:57.4]}
2... Nc6 {[%clk 0:04:56.8]} 3. Nf3 {[%clk 0:04:57]} 3... e6 {[%clk 0:04:55.5]}
4. Nc3 {[%clk 0:04:56.3]} 4... Nf6 {[%clk 0:04:54.8]} 5. Be2 {[%clk 0:04:53.8]}
5... d5 {[%clk 0:04:53.7]} 6. O-O {[%clk 0:04:52.4]} 6... Bd6 {[%clk 0:04:52]}
7. e5 {[%clk 0:04:50.1]} 7... Nxe5 {[%clk 0:04:50.4]} 8. Nxe5 {[%clk 0:04:47.7]}
8... Bxe5 {[%clk 0:04:50]} 9. Nb5 {[%clk 0:04:36.2]} 9... a6 {[%clk 0:04:47.9]}
10. Na3 {[%clk 0:04:30.7]} 10... Qc7 {[%clk 0:04:44.7]} 11. Bg5 {[%clk
0:04:25.1]} 11... Bxh2+ {[%clk 0:04:41.8]} 12. Kh1 {[%clk 0:04:22.1]} 12... Be5
{[%clk 0:04:40.7]} 13. Bxf6 {[%clk 0:04:20.1]} 13... Bxf6 {[%clk 0:04:40.1]} 14.
g3 {[%clk 0:04:17.2]} 14... Bd8 {[%clk 0:04:39]} 15. d4 {[%clk 0:04:13.2]} 15...
c4 {[%clk 0:04:36.1]} 16. b3 {[%clk 0:04:10.2]} 16... b5 {[%clk 0:04:33.8]} 17.
bxc4 {[%clk 0:04:08.5]} 17... bxc4 {[%clk 0:04:33.1]} 18. c3 {[%clk 0:03:59.2]}
18... h5 {[%clk 0:04:32]} 19. Bf3 {[%clk 0:03:54.3]} 19... h4 {[%clk 0:04:30.8]}
20. g4 {[%clk 0:03:51.7]} 20... e5 {[%clk 0:04:24]} 21. dxe5 {[%clk 0:03:49.3]}
21... Bb7 {[%clk 0:04:20.1]} 22. Re1 {[%clk 0:03:44.8]} 22... O-O {[%clk
0:04:18.1]} 23. e6 {[%clk 0:03:41.1]} 23... fxe6 {[%clk 0:04:13.2]} 24. Rxe6
{[%clk 0:03:38.9]} 24... Qf4 {[%clk 0:04:12]} 25. Re1 {[%clk 0:03:26.3]} 25...
Bc7 {[%clk 0:04:06.9]} 26. Kg1 {[%clk 0:03:18.2]} 26... Qh2+ {[%clk 0:03:58.7]}
27. Kf1 {[%clk 0:03:16.8]} 27... d4 {[%clk 0:03:52]} 28. Qxd4 {[%clk 0:03:10.1]}
28... Rxf3 {[%clk 0:03:43]} 29. Nxc4 {[%clk 0:03:03.1]} 29... Raf8 {[%clk
0:03:28.7]} 30. Nd2 {[%clk 0:02:56.1]} 30... Rxf2+ {[%clk 0:03:25.5]} 31. Qxf2
{[%clk 0:02:52.2]} 31... Qxf2# {[%clk 0:03:24.5]} 0-1

[Event "Live Chess"]
[Site "Chess.com"]
[Date "2023.05.21"]
[Round "-"]
[White "Cimon"]
[Black "LiamBellwood"]
[Result "1-0"]
[WhiteElo "1849"]
[BlackElo "1956"]
[TimeControl "300"]
[EndTime "3:04:28 PDT"]
[Termination "Cimon won by resignation"]

1. d4 {[%clk 0:04:57.7]} 1... e6 {[%clk 0:04:59.9]} 2. c4 {[%clk 0:04:55.9]}
2... d5 {[%clk 0:04:55.9]} 3. g3 {[%clk 0:04:54.5]} 3... Nf6 {[%clk 0:04:55]} 4.
Bg2 {[%clk 0:04:52.8]} 4... c5 {[%clk 0:04:54.7]} 5. cxd5 {[%clk 0:04:47.4]}
5... exd5 {[%clk 0:04:54.6]} 6. dxc5 {[%clk 0:04:45.9]} 6... Bxc5 {[%clk
0:04:53.2]} 7. Nf3 {[%clk 0:04:43.5]} 7... Be6 {[%clk 0:04:52.4]} 8. O-O {[%clk
0:04:41.3]} 8... h6 {[%clk 0:04:51.8]} 9. Nc3 {[%clk 0:04:37.3]} 9... Nc6 {[%clk
0:04:50.5]} 10. a3 {[%clk 0:04:29.7]} 10... O-O {[%clk 0:04:48.7]} 11. b4 {[%clk
0:04:27.7]} 11... Bd6 {[%clk 0:04:48.4]} 12. Bb2 {[%clk 0:04:23.1]} 12... Qd7
{[%clk 0:04:35.7]} 13. Re1 {[%clk 0:04:14]} 13... Bh3 {[%clk 0:04:34.7]} 14. Bh1
{[%clk 0:04:12.1]} 14... Ne7 {[%clk 0:04:17.6]} 15. Qb3 {[%clk 0:03:55.5]} 15...
Be6 {[%clk 0:04:14.4]} 16. Nd4 {[%clk 0:03:46.2]} 16... Rac8 {[%clk 0:03:59.1]}
17. Rac1 {[%clk 0:03:24.3]} 17... Be5 {[%clk 0:03:48]} 18. e3 {[%clk 0:03:17.9]}
18... Rc4 {[%clk 0:03:36.2]} 19. Nce2 {[%clk 0:02:36.9]} 19... Rfc8 {[%clk
0:03:34.6]} 20. Rxc4 {[%clk 0:02:32.8]} 20... dxc4 {[%clk 0:03:26.6]} 21. Qc2
{[%clk 0:02:28.3]} 21... Bb8 {[%clk 0:02:59.9]} 22. Rd1 {[%clk 0:02:10.4]} 22...
Rd8 {[%clk 0:02:22]} 23. Nc3 {[%clk 0:02:01.9]} 23... Nf5 {[%clk 0:02:14.8]} 24.
Nxf5 {[%clk 0:01:53.3]} 24... Qe7 {[%clk 0:02:14.3]} 25. Nxe7+ {[%clk
0:01:51.6]} 1-0

[Event "Live Chess"]
[Site "Chess.com"]
[Date "2023.05.21"]
[Round "-"]
[White "wadsy27"]
[Black "Greenbecker"]
[Result "1-0"]
[WhiteElo "2556"]
[BlackElo "1645"]
[TimeControl "300"]
[EndTime "3:04:38 PDT"]
[Termination "wadsy27 won by resignation"]

1. c4 {[%clk 0:04:58.1]} 1... e6 {[%clk 0:04:57.9]} 2. g3 {[%clk 0:04:56.9]}
2... d5 {[%clk 0:04:57]} 3. Bg2 {[%clk 0:04:56.4]} 3... Nf6 {[%clk 0:04:55.6]}
4. Nf3 {[%clk 0:04:56]} 4... Bc5 {[%clk 0:04:54.2]} 5. O-O {[%clk 0:04:54.6]}
5... O-O {[%clk 0:04:52.5]} 6. d4 {[%clk 0:04:53.8]} 6... Be7 {[%clk 0:04:50.4]}
7. Nc3 {[%clk 0:04:52.2]} 7... c6 {[%clk 0:04:49.7]} 8. b3 {[%clk 0:04:50.1]}
8... Nbd7 {[%clk 0:04:48.7]} 9. Bb2 {[%clk 0:04:48.8]} 9... Re8 {[%clk
0:04:46.4]} 10. Nd2 {[%clk 0:04:47.9]} 10... Qa5 {[%clk 0:04:44.7]} 11. e4
{[%clk 0:04:46.4]} 11... dxe4 {[%clk 0:04:35.7]} 12. Ndxe4 {[%clk 0:04:46.3]}
12... Ba3 {[%clk 0:04:30.3]} 13. Bxa3 {[%clk 0:04:39.3]} 13... Qxa3 {[%clk
0:04:29.1]} 14. c5 {[%clk 0:04:34.5]} 14... Nxe4 {[%clk 0:04:21.9]} 15. Nxe4
{[%clk 0:04:34.4]} 15... Rd8 {[%clk 0:04:20.2]} 16. Nd6 {[%clk 0:04:30.8]} 16...
b6 {[%clk 0:04:12]} 17. Bxc6 {[%clk 0:04:23]} 17... Rb8 {[%clk 0:04:10.9]} 18.
Qf3 {[%clk 0:04:13.3]} 18... f6 {[%clk 0:03:58.7]} 19. Nc4 {[%clk 0:04:10.3]}
19... Qb4 {[%clk 0:03:52.8]} 20. a3 {[%clk 0:04:06.9]} 1-0

[Event "Live Chess"]
[Site "Chess.com"]
[Date "2023.05.21"]
[Round "-"]
[White "MarkLim1"]
[Black "Ian-Morley"]
[Result "0-1"]
[WhiteElo "1707"]
[BlackElo "1073"]
[TimeControl "300"]
[EndTime "3:04:54 PDT"]
[Termination "Ian-Morley won by checkmate"]

1. d4 {[%clk 0:04:58.1]} 1... e5 {[%clk 0:04:59]} 2. dxe5 {[%clk 0:04:55.3]}
2... Nc6 {[%clk 0:04:56.9]} 3. Nf3 {[%clk 0:04:54.4]} 3... Qe7 {[%clk
0:04:56.3]} 4. Bf4 {[%clk 0:04:52.8]} 4... Qb4+ {[%clk 0:04:55.6]} 5. Bd2 {[%clk
0:04:51.1]} 5... Qxb2 {[%clk 0:04:54.4]} 6. Bc3 {[%clk 0:04:49.9]} 6... Bb4
{[%clk 0:04:53.3]} 7. Bxb4 {[%clk 0:04:42.2]} 7... Nxb4 {[%clk 0:04:49.2]} 8. e3
{[%clk 0:04:37.2]} 8... Nxc2+ {[%clk 0:04:47.9]} 9. Kd2 {[%clk 0:04:33.3]} 9...
Nxa1+ {[%clk 0:04:42.8]} 10. Kd3 {[%clk 0:04:31.4]} 10... Qb5+ {[%clk
0:04:29.7]} 11. Ke4 {[%clk 0:04:30]} 11... f5+ {[%clk 0:04:17.6]} 12. Kxf5
{[%clk 0:04:23.6]} 12... g6+ {[%clk 0:04:14.8]} 13. Kf4 {[%clk 0:04:18.3]} 13...
Qb4+ {[%clk 0:04:08.3]} 14. Kg3 {[%clk 0:04:15.8]} 14... h5 {[%clk 0:03:59.5]}
15. Nbd2 {[%clk 0:04:13.5]} 15... h4+ {[%clk 0:03:56.5]} 16. Kh3 {[%clk
0:04:02.9]} 16... d6+ {[%clk 0:03:55.5]} 17. g4 {[%clk 0:03:52.6]} 17... Qxg4#
{[%clk 0:03:48.9]} 0-1

[Event "Live Chess"]
[Site "Chess.com"]
[Date "2023.05.21"]
[Round "-"]
[White "toxic_rabbit"]
[Black "nigelst"]
[Result "1-0"]
[WhiteElo "1988"]
[BlackElo "1706"]
[TimeControl "300"]
[EndTime "3:05:16 PDT"]
[Termination "toxic_rabbit won on time"]

1. e4 {[%clk 0:04:58.7]} 1... c6 {[%clk 0:04:59]} 2. d4 {[%clk 0:04:57.5]} 2...
d5 {[%clk 0:04:58.2]} 3. exd5 {[%clk 0:04:57.4]} 3... cxd5 {[%clk 0:04:57.3]} 4.
Nf3 {[%clk 0:04:57.3]} 4... Nf6 {[%clk 0:04:56.4]} 5. c4 {[%clk 0:04:56.7]} 5...
Nc6 {[%clk 0:04:56]} 6. Nc3 {[%clk 0:04:56.1]} 6... Bg4 {[%clk 0:04:54.4]} 7.
Bf4 {[%clk 0:04:54.7]} 7... e6 {[%clk 0:04:49.5]} 8. cxd5 {[%clk 0:04:53.4]}
8... Nxd5 {[%clk 0:04:47]} 9. Be3 {[%clk 0:04:52]} 9... Bb4 {[%clk 0:04:40.6]}
10. Qd3 {[%clk 0:04:44.3]} 10... Bxf3 {[%clk 0:04:36.9]} 11. gxf3 {[%clk
0:04:43.3]} 11... Qa5 {[%clk 0:04:33.9]} 12. Bd2 {[%clk 0:04:41.9]} 12... O-O
{[%clk 0:04:17.1]} 13. Rg1 {[%clk 0:04:26.5]} 13... Qb6 {[%clk 0:04:13.4]} 14.
Be3 {[%clk 0:04:22.6]} 14... Bxc3+ {[%clk 0:04:06.4]} 15. bxc3 {[%clk
0:04:21.6]} 15... Qb2 {[%clk 0:04:04.9]} 16. Rc1 {[%clk 0:04:18.6]} 16... Qxa2
{[%clk 0:03:56.3]} 17. Bh6 {[%clk 0:04:10.8]} 17... g6 {[%clk 0:03:46.2]} 18. h4
{[%clk 0:04:03.8]} 18... Nce7 {[%clk 0:02:55.1]} 19. h5 {[%clk 0:03:52.3]} 19...
Nf5 {[%clk 0:02:53.8]} 20. Bxf8 {[%clk 0:03:44]} 20... Rxf8 {[%clk 0:02:48.9]}
21. hxg6 {[%clk 0:03:43.9]} 21... fxg6 {[%clk 0:02:45.2]} 22. Bh3 {[%clk
0:03:34.4]} 22... Nf4 {[%clk 0:02:31.5]} 23. Qf1 {[%clk 0:03:27.2]} 23... Qb2
{[%clk 0:02:23.8]} 24. Kd1 {[%clk 0:03:18.5]} 24... Rc8 {[%clk 0:02:07.3]} 25.
Bxf5 {[%clk 0:03:10.4]} 25... exf5 {[%clk 0:02:02.9]} 26. Qe1 {[%clk 0:03:01.5]}
26... Nd3 {[%clk 0:01:46.4]} 27. Qe6+ {[%clk 0:02:58.8]} 27... Kg7 {[%clk
0:01:41.4]} 28. Qd7+ {[%clk 0:02:54]} 28... Kf6 {[%clk 0:01:28.8]} 29. Rc2
{[%clk 0:01:59.7]} 29... Nxf2+ {[%clk 0:00:29]} 30. Kd2 {[%clk 0:01:57.1]} 30...
Qb6 {[%clk 0:00:14.1]} 31. Qxc8 {[%clk 0:01:47.2]} 31... Qd6 {[%clk 0:00:10.2]}
32. Qh8+ {[%clk 0:01:32.7]} 32... Kf7 {[%clk 0:00:04.3]} 33. Qe5 {[%clk
0:01:32.6]} 1-0

[Event "Live Chess"]
[Site "Chess.com"]
[Date "2023.05.21"]
[Round "-"]
[White "CarlsenCab"]
[Black "peter-785"]
[Result "0-1"]
[WhiteElo "519"]
[BlackElo "1189"]
[TimeControl "300"]
[EndTime "3:05:19 PDT"]
[Termination "peter-785 won by checkmate"]

1. d4 {[%clk 0:04:53.7]} 1... d5 {[%clk 0:04:57.9]} 2. Bf4 {[%clk 0:04:52.7]}
2... c6 {[%clk 0:04:56.9]} 3. Nf3 {[%clk 0:04:50.9]} 3... e6 {[%clk 0:04:55.9]}
4. e3 {[%clk 0:04:50.3]} 4... Nf6 {[%clk 0:04:55.4]} 5. Bd3 {[%clk 0:04:49.5]}
5... Be7 {[%clk 0:04:54.3]} 6. c3 {[%clk 0:04:46.9]} 6... O-O {[%clk 0:04:53.7]}
7. O-O {[%clk 0:04:44.5]} 7... c5 {[%clk 0:04:53]} 8. dxc5 {[%clk 0:04:42.6]}
8... Bxc5 {[%clk 0:04:52.3]} 9. Nbd2 {[%clk 0:04:41.2]} 9... Nbd7 {[%clk
0:04:48.1]} 10. a3 {[%clk 0:04:40.3]} 10... a6 {[%clk 0:04:45.3]} 11. Qb3 {[%clk
0:04:37.1]} 11... b5 {[%clk 0:04:43]} 12. Ne5 {[%clk 0:04:22.4]} 12... Nxe5
{[%clk 0:04:41.4]} 13. Bxe5 {[%clk 0:04:21]} 13... Be7 {[%clk 0:04:40.9]} 14.
Bxf6 {[%clk 0:04:18.1]} 14... Bxf6 {[%clk 0:04:39.5]} 15. Nf3 {[%clk 0:04:15.7]}
15... h6 {[%clk 0:04:35.8]} 16. h3 {[%clk 0:04:13.8]} 16... Bb7 {[%clk
0:04:31.5]} 17. a4 {[%clk 0:04:06.8]} 17... Qc7 {[%clk 0:04:20]} 18. axb5 {[%clk
0:04:02.6]} 18... a5 {[%clk 0:04:12]} 19. b6 {[%clk 0:03:57.2]} 19... Qc5 {[%clk
0:04:00.6]} 20. Ra4 {[%clk 0:03:45.3]} 20... Rfc8 {[%clk 0:03:45.6]} 21. Rf4
{[%clk 0:03:09.8]} 21... e5 {[%clk 0:03:10.2]} 22. Ra4 {[%clk 0:03:01.6]} 22...
e4 {[%clk 0:03:03.2]} 23. Bxe4 {[%clk 0:02:37.3]} 23... dxe4 {[%clk 0:02:58.8]}
24. Rc4 {[%clk 0:02:30.9]} 24... Qf8 {[%clk 0:02:46.5]} 25. Rxe4 {[%clk
0:02:27.8]} 25... Bxe4 {[%clk 0:02:35.3]} 26. Rd1 {[%clk 0:02:20]} 26... Rab8
{[%clk 0:02:20.7]} 27. Rd4 {[%clk 0:02:15.9]} 27... Bxd4 {[%clk 0:02:16.4]} 28.
cxd4 {[%clk 0:02:14.3]} 28... Bxf3 {[%clk 0:02:15.5]} 29. gxf3 {[%clk
0:02:13.1]} 29... Qd6 {[%clk 0:02:11]} 30. f4 {[%clk 0:02:07.2]} 30... Qxb6
{[%clk 0:02:09.5]} 31. Qxb6 {[%clk 0:02:02.7]} 31... Rxb6 {[%clk 0:02:08.8]} 32.
d5 {[%clk 0:01:58]} 32... Rxb2 {[%clk 0:02:06.6]} 33. f5 {[%clk 0:01:55.8]}
33... a4 {[%clk 0:01:58.2]} 34. e4 {[%clk 0:01:54.6]} 34... a3 {[%clk 0:01:57]}
35. d6 {[%clk 0:01:53.9]} 35... Rd8 {[%clk 0:01:56]} 36. e5 {[%clk 0:01:53]}
36... a2 {[%clk 0:01:55]} 37. e6 {[%clk 0:01:51.3]} 37... fxe6 {[%clk
0:01:53.5]} 38. fxe6 {[%clk 0:01:48.9]} 38... Rxd6 {[%clk 0:01:52.6]} 39. e7
{[%clk 0:01:48.1]} 39... Re6 {[%clk 0:01:52.1]} 40. Kg2 {[%clk 0:01:43.9]} 40...
Rxe7 {[%clk 0:01:49.7]} 41. h4 {[%clk 0:01:41.7]} 41... Ree2 {[%clk 0:01:48.8]}
42. Kg3 {[%clk 0:01:40.2]} 42... Rxf2 {[%clk 0:01:47.9]} 43. Kg4 {[%clk
0:01:37.9]} 43... a1=Q {[%clk 0:01:38]} 44. h5 {[%clk 0:01:36.3]} 44... Qa4+
{[%clk 0:01:36.4]} 45. Kg3 {[%clk 0:01:33]} 45... Rb3+ {[%clk 0:01:34.2]} 46.
Kxf2 {[%clk 0:01:31.6]} 46... Qa2+ {[%clk 0:01:33.7]} 47. Kg1 {[%clk 0:01:29.6]}
47... Rb1# {[%clk 0:01:33.2]} 0-1